bitfinex/quotes_SOLUSD_20240905
["timestamp","ask_amount","ask_price","bid_price","bid_amount"]
[1725541444385,0.8532025,133.99,133.98,7.4638]
[1725541444585,0.8532025,133.99,133.97,177.69821326]
[1725541444786,0.8532025,133.99,133.97,151.57431326]
[1725541444978,2.3546017,133.99,133.97,151.57431326]
[1725541445574,0.8532025,133.99,133.97,151.57431326]
[1725541447704,0.8532025,133.99,133.98,7.4638]
[1725541449604,0.8532025,133.99,133.98,46.4732729]
[1725541450019,0.8532025,133.99,133.98,69.3297729]
[1725541450387,0.8532025,133.99,133.98,67.83731602]
[1725541450797,0.8532025,133.99,133.98,112.82731602]
[1725541453910,0.8532025,133.99,133.98,105.3017766]
[1725541458396,7.80926442,134.08,134.05,18.6494]
[1725541458595,6.4921,134.1,134.06,7.4589]
[1725541459212,15.8776025,134.12,134.09,7.4572]
[1725541459784,15.8776025,134.12,134.08,7.4581]
[1725541460097,7.4572,134.1,134.06,7.4591]
[1725541460292,15.8776025,134.12,134.06,7.4591]
[1725541460293,7.4567,134.11,134.06,7.4591]
[1725541460601,1.5013992,134.1,134.06,7.4591]
[1725541461413,23.3338025,134.12,134.07,8.95015268]
[1725541461610,20.0,134.11,134.08,1.49143773]
[1725541461803,20.0,134.11,134.08,7.4577]
[1725541462415,0.8532025,134.12,134.11,7.4565]
[1725541463518,0.8532025,134.12,134.11,8.94758068]
[1725541463902,0.8532025,134.12,134.11,7.4565]
[1725541465393,0.8532025,134.12,134.1,26.0986]
[1725541466699,0.8532025,134.12,134.11,7.4565]
[1725541469214,0.8532025,134.12,134.1,26.0986]
[1725541469418,0.8532025,134.12,134.07,18.6458]
[1725541469605,22.7003,134.11,134.01,15.4276]
[1725541469795,22.7003,134.11,134.04,26.1103]
[1725541469796,7.458,134.09,134.04,26.1103]
[1725541469995,1.5013992,134.08,134.05,7.4597]
[1725541470295,1.5013992,134.07,134.01,34.0821]
[1725541470501,1.5013992,134.09,134.01,18.6545]
[1725541470721,46.5013992,134.09,133.98,18.6588]
[1725541470916,7.4593,134.06,134.01,7.4621]
[1725541471223,1.5013992,134.05,134.02,7.4612]
[1725541471405,1.5013992,134.05,134.01,7.4621]
[1725541471721,1.5013992,134.04,134.0,18.6558]
[1725541471929,24.2677992,134.04,134.0,18.6558]
[1725541472096,24.2677992,134.04,133.97,151.57431326]
[1725541472300,65.0,134.03,133.97,151.57431326]
[1725541472608,1.5013992,134.02,133.97,151.57431326]
[1725541472805,7.4632,134.0,133.97,151.57431326]
[1725541473014,20.0,133.99,133.97,151.57431326]
[1725541473434,8.9634992,134.01,133.97,151.57431326]
[1725541473596,20.0,134.0,133.97,151.57431326]
[1725541473803,1.5013992,133.99,133.97,151.57431326]
[1725541474925,21.5013992,134.01,133.97,151.57431326]
[1725541475110,15.27754226,134.02,133.97,151.57431326]
[1725541475111,7.81554226,134.02,133.97,151.57431326]
[1725541475430,1.5013992,134.03,133.99,7.4629]
[1725541475723,30.2273,134.04,134.0,7.4626]
[1725541475724,6.3999,134.04,134.0,7.4626]
[1725541475901,7.9012992,134.04,134.0,7.4626]
[1725541476097,7.4594,134.06,134.01,8.95426914]
[1725541476302,1.5013992,134.06,134.02,8.95367522]
[1725541476701,13.737,134.07,134.02,7.4615]
[1725541476702,15.2383992,134.07,134.02,7.4615]
[1725541477696,7.7795992,134.07,134.03,7.4608]
[1725541477901,7.81180294,134.08,134.04,7.4604]
[1725541478133,7.4577,134.09,134.04,7.4604]
[1725541478134,8.9590992,134.09,134.04,7.4604]
[1725541478305,1.5013992,134.09,134.05,7.4598]
[1725541478697,1.5013992,134.09,134.04,7.4603]
[1725541478698,8.9591992,134.09,134.04,7.4603]
[1725541478906,8.9591992,134.09,134.0,37.3131]
[1725541478907,1.5013992,134.09,134.0,18.6563]
[1725541479326,20.1464992,134.09,133.97,170.23471326]
[1725541479505,20.0,134.08,133.99,18.6572]
[1725541479706,8.9605992,134.07,134.02,7.4615]
[1725541479907,27.4593,134.06,134.02,7.4615]
[1725541480121,1.5013992,134.05,134.01,7.4621]
[1725541480731,8.9612992,134.05,134.0,7.4626]
[1725541481115,1.5013992,134.05,134.01,7.462]
[1725541481311,1.5013992,134.05,134.02,7.4615]
[1725541481628,1.5013992,134.05,134.01,7.462]
[1725541481824,21.5013992,134.05,134.01,7.462]
[1725541482058,1.5013992,134.08,134.01,18.6543]
[1725541482631,7.4589,134.07,134.02,7.4614]
[1725541482836,1.5013992,134.06,134.03,7.4608]
[1725541483135,1.5013992,134.07,134.04,7.4603]
[1725541483440,8.9595992,134.08,134.04,7.4603]
[1725541483619,1.5013992,134.07,134.03,26.1126]
[1725541484008,28.9603992,134.07,134.03,18.6517]
[1725541484507,7.4596,134.06,134.02,7.4614]
[1725541484809,7.4609,134.04,134.0,18.6561]
[1725541485020,1.5013992,134.03,133.98,7.4632]
[1725541485219,7.4613,134.03,133.98,7.4632]
[1725541485425,1.5013992,134.02,133.98,7.4632]
[1725541485739,1.5013992,134.02,133.99,7.4631]
[1725541485914,7.4613,134.03,133.99,7.4631]
[1725541486115,7.4605,134.04,133.99,7.4631]
[1725541486337,1.5013992,134.03,133.99,7.4631]
[1725541486638,20.0,134.07,134.0,7.4626]
[1725541486820,45.0,134.06,134.0,7.4626]
[1725541487024,7.4608,134.04,133.99,26.1205]
[1725541487331,1.0013992,134.03,133.99,26.1205]
[1725541487934,8.4621992,134.04,133.99,26.1205]
[1725541488630,1.0013992,134.04,133.99,18.6574]
[1725541488842,6.298,134.03,133.97,151.57431326]
[1725541489128,66.0013992,134.02,133.97,151.57431326]
[1725541489344,7.4633,133.99,133.97,151.57431326]
[1725541489513,1.0013992,133.98,133.97,151.57431326]
[1725541489712,7.4633,133.99,133.97,151.57431326]
[1725541489916,1.0013992,133.98,133.97,151.57431326]
[1725541491017,1.0013992,134.01,133.97,151.57431326]
[1725541491219,8.4638992,134.01,133.97,151.57431326]
[1725541491423,27.4627,134.0,133.97,151.57431326]
[1725541491640,1.0013992,133.99,133.97,151.57431326]
[1725541492642,8.4645992,133.99,133.97,151.57431326]
[1725541492845,8.4651992,133.98,133.97,151.57431326]
[1725541493139,1.0013992,133.98,133.97,151.57431326]
[1725541493342,8.4647992,133.99,133.97,151.57431326]
[1725541493517,20.0,134.0,133.97,151.57431326]
[1725541493828,1.0013992,134.01,133.97,151.57431326]
[1725541494029,7.2993992,134.03,133.99,18.6577]
[1725541494226,1.0013992,134.03,133.99,18.6577]
[1725541494425,8.4624992,134.03,133.99,26.1208]
[1725541495434,20.0,134.02,133.99,26.1208]
[1725541495643,1.0013992,134.05,134.02,7.4614]
[1725541495822,1.0013992,134.05,134.01,18.6548]
[1725541496248,8.4613992,134.05,134.01,26.1165]
[1725541496541,1.0013992,134.04,134.01,18.6548]
[1725541496929,7.4613,134.03,133.97,170.23431326]
[1725541497118,8.4619992,134.04,134.0,7.4622]
[1725541497531,8.4612992,134.05,134.01,7.4621]
[1725541497842,22.31954365,134.06,134.01,7.4621]
[1725541498020,20.0,134.05,134.01,7.4621]
[1725541498422,20.0,134.05,134.02,18.6539]
[1725541499443,20.0,134.05,134.02,26.1154]
[1725541500530,7.81294445,134.06,134.03,8.95298793]
[1725541500841,8.4601992,134.07,134.03,8.95298793]
[1725541501049,7.4594,134.06,134.02,26.1154]
[1725541501234,8.4601992,134.07,134.03,7.461]
[1725541501432,8.4595992,134.08,134.04,7.4603]
[1725541501750,8.4591992,134.09,134.05,7.4597]
[1725541501938,8.4591992,134.09,134.05,8.95147986]
[1725541502150,16.26996356,134.1,134.06,7.4591]
[1725541502323,7.4576,134.09,134.05,7.4598]
[1725541502525,16.26996356,134.1,134.06,7.4592]
[1725541502725,16.26996356,134.1,134.05,7.4597]
[1725541502933,7.4577,134.09,134.05,7.4597]
[1725541503834,16.26996356,134.1,134.05,7.4597]
[1725541504036,8.81276356,134.1,134.06,7.4589]
[1725541504345,1.0013992,134.1,134.06,7.4589]
[1725541504758,7.4566,134.11,134.06,7.4589]
[1725541504759,1.0013992,134.11,134.08,7.4578]
[1725541504964,1.0013992,134.11,134.07,7.4586]
[1725541507052,21.0013992,134.11,134.07,7.4586]
[1725541507629,21.0013992,134.11,134.06,26.1066]
[1725541507945,8.4585992,134.1,134.06,7.4593]
[1725541508958,19.6443992,134.1,134.0,22.2504]
[1725541509257,7.4589,134.07,134.02,26.1139]
[1725541509426,1.0013992,134.06,134.02,26.1139]
[1725541510957,8.4606992,134.06,134.02,26.1139]
[1725541511148,7.4593,134.06,134.02,26.1139]
[1725541511350,1.0013992,134.05,134.02,18.6528]
[1725541511552,1.0013992,134.07,134.02,20.14496476]
[1725541511728,21.0013992,134.07,134.02,18.6528]
[1725541512557,27.4589,134.07,134.03,7.4606]
[1725541512761,23.8851992,134.08,134.04,7.4603]
[1725541512932,8.4596992,134.08,134.04,7.4603]
[1725541513131,21.9892025,134.12,134.06,7.4593]
[1725541513132,1.0013992,134.1,134.06,7.4593]
[1725541514155,1.0013992,134.11,134.06,7.4593]
[1725541514335,7.4574,134.1,134.06,7.4593]
[1725541514534,1.0013992,134.09,134.06,7.4593]
[1725541514742,1.0013992,134.09,134.01,18.6542]
[1725541514938,7.4592,134.07,134.03,7.4608]
[1725541515163,1.0013992,134.06,134.01,18.6542]
[1725541515367,7.4594,134.06,134.02,7.4615]
[1725541515751,8.4602992,134.07,134.02,7.4615]
[1725541519741,8.4602992,134.07,134.03,7.461]
[1725541519959,28.4595992,134.08,134.04,7.4603]
[1725541520364,21.0013992,134.08,134.05,7.4598]
[1725541520670,28.4595992,134.08,134.04,7.4602]
[1725541520843,21.8835,134.06,133.97,167.09971326]
[1725541521048,7.462,134.02,133.98,7.4636]
[1725541521356,7.4634,133.99,133.97,151.57431326]
[1725541521863,1.0013992,133.98,133.97,151.57431326]
[1725541522167,30.3486992,133.98,133.97,149.61029873]
[1725541522368,30.3486992,133.98,133.86,280.164]
[1725541522369,87.8848992,133.98,133.86,280.164]
[1725541522574,65.0,133.97,133.87,18.6741]
[1725541522774,1.0013992,133.96,133.87,18.6741]
[1725541523066,1.0013992,133.95,133.9,7.4679]
[1725541523273,7.4671,133.92,133.87,26.144]
[1725541523447,83.6621,133.97,133.87,26.1435]
[1725541523448,1.0013992,133.91,133.87,26.1435]
[1725541525963,7.4682,133.9,133.85,7.471]
[1725541526173,7.4682,133.9,133.86,1.49392962]
[1725541526470,1.0013992,133.89,133.85,7.471]
[1725541527270,1.0013992,133.9,133.86,8.96431929]
[1725541527563,21.0013992,133.9,133.86,7.4704]
[1725541527771,28.4695992,133.9,133.86,7.4704]
[1725541527942,28.4695992,133.9,133.85,7.4709]
[1725541528144,1.0013992,133.89,133.83,18.679]
[1725541528372,46.0013992,133.89,133.82,7.4727]
[1725541528554,20.0,133.88,133.82,7.4727]
[1725541528752,46.0013992,133.87,133.82,7.4727]
[1725541529062,27.4704,133.86,133.8,16.1568]
[1725541529265,23.9195992,133.9,133.8,37.59490737]
[1725541529576,7.4693,133.88,133.78,15.5514]
[1725541529869,1.0013992,133.87,133.79,1.49423119]
[1725541530071,1.0013992,133.87,133.8,1.49423035]
[1725541530373,1.0013992,133.87,133.82,26.1535]
[1725541530767,1.0013992,133.87,133.83,8.9662298]
[1725541530964,1.0013992,133.87,133.83,7.472]
[1725541531739,1.0013992,133.87,133.83,8.96622976]
[1725541531952,21.0013992,133.87,133.83,8.96622976]
[1725541532178,21.0013992,133.87,133.83,7.472]
[1725541532476,21.0013992,133.87,133.82,18.6813]
[1725541532477,7.4709,133.86,133.82,18.6813]
[1725541532774,28.4723992,133.85,133.79,18.6853]
[1725541533065,45.0,133.84,133.8,7.4733]
[1725541533262,27.471,133.85,133.81,7.4732]
[1725541533462,20.0,133.85,133.82,7.4726]
[1725541533643,20.0,133.85,133.83,1.49427451]
[1725541534058,20.0,133.86,133.83,1.49427451]
[1725541534349,1.0013992,133.85,133.82,7.4726]
[1725541534751,1.0013992,133.85,133.81,7.4731]
[1725541535147,20.0,133.86,133.82,8.96700992]
[1725541535475,21.0013992,133.86,133.82,8.96700992]
[1725541537364,20.0,133.86,133.83,7.4721]
[1725541537570,20.0,133.86,133.84,7.4715]
[1725541537865,20.0,133.86,133.83,7.472]
[1725541538074,28.4713992,133.87,133.83,7.472]
[1725541538255,28.4713992,133.87,133.82,7.4726]
[1725541538459,45.0,133.86,133.82,7.4726]
[1725541538663,1.0013992,133.85,133.82,7.4726]
[1725541539668,1.0013992,133.85,133.81,26.1554]
[1725541539866,21.0013992,133.85,133.81,26.1554]
[1725541540266,6.0781,133.84,133.79,7.4738]
[1725541540470,6.0781,133.84,133.78,26.1617]
[1725541540471,73.4736992,133.83,133.78,26.1617]
[1725541540674,1.0013992,133.82,133.78,26.1617]
[1725541541762,20.0,133.83,133.8,18.6836]
[1725541541948,7.4706,133.86,133.81,8.96722815]
[1725541542264,1.0013992,133.85,133.81,8.96722815]
[1725541542572,28.4724992,133.85,133.8,26.1569]
[1725541543076,1.0013992,133.84,133.8,26.1569]
[1725541543576,1.0013992,133.84,133.74,15.8708]
[1725541543577,6.0501,133.87,133.82,18.6812]
[1725541543869,1.0013992,133.86,133.82,18.6812]
[1725541544470,1.0013992,133.86,133.82,26.1535]
[1725541544853,21.0013992,133.86,133.82,26.1535]
[1725541545054,1.0013992,133.85,133.82,26.1535]
[1725541545371,8.4724992,133.85,133.81,7.4729]
[1725541545575,8.4724992,133.85,133.8,7.4737]
[1725541545773,20.0,133.84,133.8,7.4737]
[1725541545978,46.0013992,133.83,133.79,26.1592]
[1725541546155,21.0013992,133.82,133.78,7.4748]
[1725541546362,7.4734,133.81,133.76,18.6893]
[1725541546579,1.0013992,133.8,133.76,18.6893]
[1725541546763,1.0013992,133.8,133.76,26.1649]
[1725541546963,8.4752992,133.8,133.76,26.1649]
[1725541547670,7.4765,133.76,133.7,18.6975]
[1725541547860,1.0013992,133.79,133.69,15.1242]
[1725541547861,7.4755,133.77,133.69,15.1242]
[1725541548063,7.4749,133.78,133.72,18.6952]
[1725541548262,20.0,133.77,133.72,18.6952]
[1725541548478,7.82768241,133.8,133.73,39.08997379]
[1725541548681,7.4722,133.83,133.78,7.4748]
[1725541548866,20.0,133.82,133.79,1.49462386]
[1725541549069,1.0013992,133.83,133.79,8.96892386]
[1725541549600,21.0013992,133.83,133.79,8.96892386]
[1725541550179,20.0,133.83,133.8,7.4736]
[1725541550361,8.82658879,133.85,133.81,8.9676222]
[1725541550560,8.4725992,133.85,133.81,7.4732]
[1725541550962,1.0013992,133.85,133.81,7.4732]
[1725541552165,21.0013992,133.85,133.81,7.4732]
[1725541552485,28.4724992,133.85,133.81,7.4732]
[1725541555687,20.0,133.85,133.81,7.4732]
[1725541555995,1.0013992,133.87,133.85,7.4709]
[1725541556292,7.8239378,133.88,133.84,8.96545296]
[1725541556479,24.6854992,133.89,133.84,8.96545296]
[1725541556887,7.4695,133.88,133.84,8.96545296]
[1725541557183,7.82185631,133.9,133.87,7.4698]
[1725541557381,8.82325551,133.9,133.86,1.4938153]
[1725541557687,8.82325551,133.9,133.86,8.9641153]
[1725541557894,16.29165551,133.9,133.86,7.4703]
[1725541558274,8.4701992,133.89,133.85,18.6769]
[1725541558465,45.0,133.88,133.82,18.6809]
[1725541558669,1.0013992,133.89,133.79,34.7478]
[1725541558670,1.0013992,133.87,133.79,34.7478]
[1725541558879,7.4717,133.84,133.79,7.474]
[1725541559199,7.4717,133.84,133.78,18.6867]
[1725541559368,7.4717,133.84,133.79,7.474]
[1725541559772,7.4717,133.84,133.78,18.6867]
[1725541559982,1.0013992,133.83,133.8,7.4737]
[1725541560371,7.4717,133.84,133.8,7.4737]
[1725541560572,7.4712,133.85,133.81,8.96774512]
[1725541560787,20.0,133.84,133.81,7.4732]
[1725541561401,20.0,133.85,133.82,7.4723]
[1725541561572,28.4719992,133.86,133.81,8.96740696]
[1725541561774,1.0013992,133.85,133.81,8.96740696]
[1725541561993,28.4719992,133.86,133.81,7.4731]
[1725541562186,21.0013992,133.86,133.83,7.4721]
[1725541562501,20.0,133.86,133.83,1.49413555]
[1725541562801,7.47,133.87,133.83,7.472]
[1725541562995,1.0013992,133.86,133.82,26.1537]
[1725541563199,66.0013992,133.86,133.8,7.4736]
[1725541563385,21.0013992,133.85,133.8,7.4736]
[1725541564283,7.4717,133.84,133.8,7.4736]
[1725541564485,53.4735992,133.83,133.79,26.1593]
[1725541564686,21.0013992,133.82,133.79,26.1593]
[1725541564886,20.0,133.82,133.79,26.1593]
[1725541566494,28.4742992,133.82,133.78,7.4748]
[1725541567003,28.4742992,133.82,133.77,7.4753]
[1725541567402,52.4733,133.81,133.77,7.4753]
[1725541567700,1.0013992,133.8,133.7,22.7372]
[1725541567899,7.4754,133.78,133.71,5.47337547]
[1725541568104,66.0013992,133.77,133.73,7.4776]
[1725541568409,8.4778992,133.76,133.72,7.4782]
[1725541568899,8.4778992,133.76,133.71,12.95207547]
[1725541569323,1.0013992,133.76,133.71,5.47337547]
[1725541569610,7.4783,133.72,133.71,5.47337547]
[1725541569805,7.4778,133.73,133.71,5.47337547]
[1725541570107,1.0013992,133.72,133.71,5.47337547]
[1725541570411,7.4778,133.73,133.71,5.47337547]
[1725541570590,73.4796992,133.72,133.71,5.47337547]
[1725541570798,72.4783,133.72,133.71,5.47337547]
[1725541571305,94.5864,133.72,133.71,5.47337547]
[1725541571492,94.5864,133.72,133.66,0.8532025]
[1725541571493,1.0013992,133.71,133.66,0.8532025]
[1725541571806,1.0013992,133.7,133.66,0.8532025]
[1725541572305,7.4811,133.67,133.66,0.8532025]
[1725541572602,72.4811,133.67,133.66,0.8532025]
[1725541572779,73.4824992,133.67,133.66,0.8532025]
[1725541572984,1.0013992,133.67,133.66,0.8532025]
[1725541573181,1.0013992,133.7,133.66,0.8532025]
[1725541574205,1.0013992,133.71,133.66,0.8532025]
[1725541574405,6.2587,133.72,133.69,7.4799]
[1725541574624,1.0013992,133.74,133.7,8.9752531]
[1725541574803,1.0013992,133.73,133.69,7.4799]
[1725541575298,1.0013992,133.73,133.68,18.7004]
[1725541575807,7.4783,133.72,133.68,26.1808]
[1725541576028,1.0013992,133.74,133.69,1.49595548]
[1725541576193,1.0013992,133.74,133.68,18.7004]
[1725541576508,1.0013992,133.74,133.68,26.1804]
[1725541576509,53.4785992,133.74,133.68,26.1804]
[1725541576700,21.0013992,133.73,133.69,7.4798]
[1725541576906,21.0013992,133.73,133.69,8.97560774]
[1725541577205,21.0013992,133.73,133.69,7.4798]
[1725541577799,28.4790992,133.73,133.69,7.4798]
[1725541578002,46.0013992,133.72,133.69,7.4798]
[1725541578195,46.0013992,133.72,133.68,26.1808]
[1725541578589,45.0,133.72,133.69,7.4799]
[1725541578789,1.0013992,133.72,133.69,8.97581862]
[1725541579013,20.0,133.73,133.7,18.6977]
[1725541579198,6.3324,133.8,133.72,18.6949]
[1725541579518,7.475,133.78,133.73,7.4776]
[1725541579723,1.0013992,133.77,133.73,7.4776]
[1725541581217,21.0013992,133.77,133.73,7.4776]
[1725541582018,1.0013992,133.76,133.73,7.4776]
[1725541582500,46.0013992,133.76,133.72,18.6949]
[1725541582705,7.4767,133.75,133.71,7.4784]
[1725541582912,46.0013992,133.74,133.71,7.4784]
[1725541583115,1.0013992,133.73,133.71,7.4784]
[1725541584924,7.4762,133.76,133.72,7.4783]
[1725541585123,66.0013992,133.75,133.72,7.4783]
[1725541585511,46.0013992,133.75,133.72,7.4783]
[1725541586412,46.0013992,133.75,133.71,7.4787]
[1725541586805,53.4780992,133.75,133.7,7.4794]
[1725541587014,21.0013992,133.74,133.69,26.1791]
[1725541587223,1.0013992,133.73,133.69,26.1791]
[1725541587420,46.0013992,133.73,133.69,26.1791]
[1725541587926,20.0,133.72,133.69,26.1791]
[1725541588225,45.0,133.73,133.69,18.6993]
[1725541588527,1.0013992,133.72,133.69,18.6993]
[1725541588696,21.0013992,133.72,133.69,18.6993]
[1725541589203,20.0,133.72,133.69,27.67470985]
[1725541589397,45.0,133.73,133.69,27.67470985]
[1725541589398,45.0,133.73,133.71,7.4788]
[1725541589640,18.6882,133.78,133.71,7.4788]
[1725541589641,46.0013992,133.74,133.71,7.4788]
[1725541589930,1.0013992,133.77,133.72,1.49557135]
[1725541590104,1.0013992,133.77,133.67,37.4028]
[1725541590105,7.81951359,133.77,133.75,7.4765]
[1725541590305,1.0013992,133.79,133.77,7.4753]
[1725541590531,1.0013992,133.79,133.76,26.165]
[1725541591604,1.0013992,133.79,133.76,18.6895]
[1725541593122,21.0013992,133.79,133.76,26.1655]
[1725541596224,21.0013992,133.79,133.72,37.58590681]
[1725541596225,28.4758992,133.79,133.75,7.4765]
[1725541596424,45.0,133.78,133.75,7.4765]
[1725541596630,45.0,133.78,133.76,7.4759]
[1725541596830,20.0,133.79,133.77,7.4754]
[1725541597032,21.0013992,133.79,133.77,7.4754]
[1725541597326,31.14157483,133.81,133.78,7.4749]
[1725541597327,21.0013992,133.8,133.78,7.4749]
[1725541597515,1.0013992,133.8,133.78,7.4749]
[1725541598119,1.0013992,133.8,133.77,26.1634]
[1725541598414,1.0013992,133.81,133.77,26.1634]
[1725541598816,21.0013992,133.81,133.77,26.1634]
[1725541601417,28.4745992,133.81,133.77,26.1634]
[1725541601620,7.4748,133.79,133.74,26.1687]
[1725541601835,46.0013992,133.78,133.74,26.1687]
[1725541602009,46.0013992,133.78,133.75,7.4766]
[1725541603631,1.0013992,133.78,133.76,7.476]
[1725541603832,1.0013992,133.8,133.76,18.6895]
[1725541604426,1.0013992,133.8,133.77,7.4753]
[1725541604730,1.0013992,133.8,133.76,18.6895]
[1725541604731,7.4745,133.79,133.76,18.6895]
[1725541604929,21.0013992,133.8,133.76,26.1654]
[1725541604930,1.0013992,133.78,133.76,26.1654]
[1725541605114,46.0013992,133.78,133.76,26.1654]
[1725541605515,1.0013992,133.78,133.76,26.1654]
[1725541606922,1.0013992,133.78,133.73,18.6935]
[1725541606923,21.0013992,133.78,133.73,18.6935]
[1725541607241,45.0,133.77,133.73,18.6935]
[1725541607454,21.0013992,133.76,133.71,7.4784]
[1725541607613,45.0,133.75,133.72,7.4781]
[1725541607807,1.0013992,133.74,133.72,7.4781]
[1725541608035,46.0013992,133.75,133.72,7.4781]
[1725541609667,35.29348606,133.76,133.71,37.3926]
[1725541609668,27.81738606,133.76,133.71,37.3926]
[1725541609833,6.3525,133.81,133.71,37.3926]
[1725541609834,1.0013992,133.8,133.79,26.1604]
[1725541610143,1.0013992,133.81,133.79,18.686]
[1725541610738,8.81570872,133.82,133.79,18.686]
[1725541610930,1.0013992,133.82,133.81,7.4732]
[1725541611140,1.0013992,133.83,133.81,7.4732]
[1725541611515,1.0013992,133.83,133.8,7.4737]
[1725541611718,8.8139804,133.84,133.81,7.4728]
[1725541612241,20.0,133.83,133.81,7.4728]
[1725541612621,20.0,133.83,133.8,7.4737]
[1725541612944,20.0,133.83,133.79,18.686]
[1725541613117,20.0,133.83,133.81,18.6825]
[1725541613835,1.0013992,133.85,133.81,18.6825]
[1725541614029,46.0013992,133.85,133.81,18.6825]
[1725541614232,20.0,133.84,133.83,7.4719]
[1725541614535,20.0,133.84,133.82,7.4726]
[1725541614924,1.0013992,133.85,133.82,7.4726]
[1725541616145,46.0013992,133.85,133.82,7.4726]
[1725541616346,20.0,133.84,133.82,7.4726]
[1725541618927,20.0,133.84,133.82,8.96701849]
[1725541619328,21.0013992,133.86,133.83,7.4721]
[1725541619633,1.0013992,133.85,133.83,7.4721]
[1725541620539,46.0013992,133.85,133.78,18.6865]
[1725541620753,20.0,133.84,133.78,18.6865]
[1725541620940,46.0013992,133.83,133.8,7.4734]
[1725541621142,1.0013992,133.82,133.78,18.6865]
[1725541621329,1.0013992,133.82,133.79,7.4742]
[1725541621330,21.0013992,133.82,133.79,7.4742]
[1725541621852,7.81179312,133.87,133.8,20.17896909]
[1725541622027,21.0013992,133.86,133.82,7.4723]
[1725541622226,1.0013992,133.85,133.82,7.4723]
[1725541622724,1.0013992,133.85,133.75,15.9382]
[1725541622725,6.1886,133.84,133.75,15.9382]
[1725541623044,6.1886,133.84,133.67,60.0]
[1725541623045,7.4734,133.81,133.76,7.4755]
[1725541623235,21.0013992,133.8,133.76,7.4755]
[1725541623551,1.0013992,133.79,133.77,7.4754]
[1725541623753,7.4755,133.77,133.73,18.6933]
[1725541623922,7.4755,133.77,133.72,16.1785]
[1725541623923,1.0013992,133.76,133.72,7.4779]
[1725541624252,20.0,133.76,133.73,1.49559351]
[1725541624431,20.0,133.76,133.7,37.3966]
[1725541624748,20.0,133.76,133.74,7.4767]
[1725541625049,20.0,133.76,133.7,37.3966]
[1725541625050,7.81644876,133.79,133.7,75.01770566]
[1725541625223,1.0013992,133.8,133.76,18.6895]
[1725541625428,66.0013992,133.81,133.76,18.6895]
[1725541625645,66.0013992,133.81,133.77,7.475]
[1725541625824,46.0013992,133.81,133.76,18.6895]
[1725541626024,1.0013992,133.81,133.77,1.49506112]
[1725541626624,1.0013992,133.81,133.77,7.4753]
[1725541626825,8.4748992,133.81,133.76,26.1654]
[1725541627058,45.0,133.8,133.76,26.1654]
[1725541627238,1.0013992,133.81,133.77,7.475]
[1725541629833,1.0013992,133.81,133.78,7.4744]
[1725541630447,8.4749992,133.81,133.76,26.1654]
[1725541630639,20.0,133.8,133.76,26.1654]
[1725541630835,7.4754,133.78,133.73,26.1709]
[1725541631158,21.0013992,133.77,133.74,7.4771]
[1725541631450,8.4740992,133.82,133.78,7.4749]
[1725541631626,65.0,133.81,133.77,26.1634]
[1725541631827,1.0013992,133.8,133.77,26.1635]
[1725541632025,20.0,133.81,133.78,1.49494538]
[1725541632245,8.81599426,133.83,133.79,18.685]
[1725541632652,1.0013992,133.84,133.81,18.6824]
[1725541633030,1.0013992,133.86,133.78,34.6376]
[1725541633232,7.4716,133.84,133.8,7.4734]
[1725541633441,8.4723992,133.85,133.8,7.4734]
[1725541633627,1.0013992,133.85,133.83,7.4716]
[1725541634030,1.0013992,133.86,133.82,18.6807]
[1725541634237,1.0013992,133.86,133.83,7.4717]
[1725541635133,21.0013992,133.86,133.83,7.4717]
[1725541635851,1.0013992,133.85,133.83,7.4717]
[1725541636043,1.0013992,133.85,133.82,18.6807]
[1725541636044,46.0013992,133.85,133.82,26.1532]
[1725541636359,20.0,133.86,133.83,7.472]
[1725541636568,1.0013992,133.85,133.78,15.9507]
[1725541636855,7.4717,133.84,133.79,7.474]
[1725541637046,20.0,133.83,133.82,7.4727]
[1725541637249,46.0013992,133.85,133.83,7.472]
[1725541637454,20.0,133.84,133.82,26.1538]